fUSD/lending_fUSD_20240814
["ID","MTS","AMOUNT","RATE_DAILY","PERIOD"]
[334958911,1723673443511,-500.0,0.0002427,2]
[334958913,1723673443521,-500.0,0.0002427,2]
[334958915,1723673443530,-500.0,0.0002427,2]
[334958917,1723673443541,-500.0,0.0002427,2]
[334958920,1723673443554,-500.0,0.0002428,2]
[334958922,1723673443565,-500.0,0.0002428,2]
[334958924,1723673443575,-500.0,0.0002428,2]
[334958926,1723673443592,-500.0,0.0002428,2]
[334958928,1723673443602,-4693.28,0.0002428,2]
[334958930,1723673443614,-4693.28,0.0002428,2]
[334958932,1723673443625,-4693.28,0.0002428,2]
[334958934,1723673443635,-151.02,0.0002428,2]
[334958936,1723673443645,-4693.28,0.0002428,2]
[334958938,1723673443655,-4693.28,0.0002428,2]
[334958940,1723673443665,-190254.91251,0.0002429,4]
[334958941,1723673443675,-139200.877061,0.0002429,4]
[334958942,1723673443684,-151.02,0.0002429,2]
[334958943,1723673443694,-17836.3980478,0.00024291,4]
[334958944,1723673443704,-25309.2503747,0.00024291,4]
[334958945,1723673443713,-2500.0,0.00024296,5]
[334958946,1723673443722,-165.8654425,0.00024297,2]
[334958947,1723673443732,-150.30944536,0.00024298,2]
[334958948,1723673443741,-2998.37985186,0.00024298,2]
[334958949,1723673443751,-1000.0,0.00024299,3]
[334958950,1723673443760,-349742.56942349,0.000243,5]
[334958951,1723673443770,-53932.33538319,0.000243,5]
[334958952,1723673443780,-1993.6,0.000243,2]
[334958953,1723673443790,-2000.0,0.000243,2]
[334958954,1723673443802,-495.0,0.000243,7]
[334958955,1723673443812,-990.0,0.000243,7]
[334958956,1723673443821,-193.0,0.000243,7]
[334958958,1723673443831,-200.0,0.000243,7]
[334958960,1723673443841,-500.0,0.000243,2]
[334958962,1723673443851,-500.0,0.000243,2]
[334958964,1723673443861,-500.0,0.000243,2]
[334958966,1723673443870,-500.0,0.000243,2]
[334958968,1723673443879,-339.54748048,0.000243,2]
[334958970,1723673443889,-152.5019045,0.00024301,2]
[334958972,1723673443898,-9921.2608216,0.00024301,2]
[334958973,1723673443908,-28469.5546082,0.00024301,2]
[334958975,1723673443918,-4263.2392601,0.00024301,2]
[334958977,1723673443927,-314.57072789,0.00024301,2]
[334958979,1723673443937,-5945.46601594,0.0002433,4]
[334958981,1723673443946,-6327.31259368,0.0002433,4]
[334958983,1723673443955,-5000.0,0.0002434,2]
[334958985,1723673443965,-5000.0,0.00024345,2]
[334958987,1723673443974,-5000.0,0.00024351,2]
[334958989,1723673443984,-6327.31259368,0.00024363,4]
[334958991,1723673443993,-5945.46601594,0.00024373,4]
[334958993,1723673444002,-5000.0,0.00024383,2]
[334958995,1723673444012,-6327.31259368,0.0002439,4]
[334958997,1723673444022,-1400.0,0.00024395,2]
[334958999,1723673444032,-213.4064,0.000244,2]
[334959001,1723673444043,-3128.1789273,0.000244,2]
[334959003,1723673444052,-1308.85403876,0.000244,2]
[334959005,1723673444061,-175.97548101,0.000244,2]
[334959007,1723673444070,-262.5936,0.000244,2]
[334959009,1723673444079,-748.29095907,0.000244,4]
[334959011,1723673444088,-159.41647056,0.000244,2]
[334959013,1723673444098,-2326.84186942,0.000244,2]
[334959015,1723673444107,-608.50154988,0.000244,2]
[334959017,1723673444117,-5945.46601594,0.000244,4]
[334959019,1723673444126,-6327.31259368,0.000244,4]
[334959021,1723673444136,-2500.0,0.0002441,2]
[334959023,1723673444145,-1100.0,0.0002441,2]
[334959025,1723673444155,-2326.8418694,0.00024414,2]
[334959027,1723673444164,-500.0,0.00024421,2]
[334959029,1723673444174,-2326.8418694,0.00024427,2]
[334959031,1723673444183,-500.0,0.00024436,2]
[334959032,1723673444192,-500.0,0.00024436,2]
[334959034,1723673444201,-2500.0,0.00024437,2]
[334959036,1723673444210,-608.50154987,0.0002445,2]
[334959038,1723673444219,-1400.0,0.00024471,2]
[334959040,1723673444228,-6327.31259368,0.0002448,4]
[334959042,1723673444238,-31636.5629684,0.0002449,4]
[334959044,1723673444247,-151.02,0.0002449,2]
[334959046,1723673444258,-151.02,0.0002449,2]
[334959048,1723673444268,-151.02,0.0002449,2]
[334959050,1723673444277,-151.02,0.0002449,2]
[334959052,1723673444286,-151.02,0.0002449,2]
[334959054,1723673444296,-151.02,0.0002449,2]
[334959056,1723673444305,-151.02,0.0002449,2]
[334959058,1723673444315,-151.02,0.0002449,2]
[334959059,1723673444324,-151.02,0.0002449,2]
[334959060,1723673444333,-151.02,0.0002449,2]
[334959061,1723673444342,-151.02,0.0002449,2]
[334959062,1723673444351,-151.02,0.0002449,2]
[334959063,1723673444361,-151.02,0.0002449,2]
[334959064,1723673444370,-151.02,0.0002449,2]
[334959065,1723673444379,-151.02,0.0002449,2]
[334959066,1723673444388,-151.02,0.0002449,2]
[334959067,1723673444397,-155.0,0.0002449,2]
[334959068,1723673444407,-2500.0,0.00024494,2]
[334959069,1723673444416,-158.53202587,0.000245,2]
[334959070,1723673444425,-4864.23976122,0.000245,2]
[334959071,1723673444434,-2612.87775291,0.000245,11]
[334959072,1723673444584,-51641.44272167,0.000245,11]
[334959073,1723673444596,-29527.5,0.000245,11]
[334959074,1723673444606,-334265.85193283,0.000245,11]
[334959075,1723673444630,-961.61789322,0.000245,11]
[334959076,1723673444641,-6066.38567471,0.000245,11]
[334959077,1723673444652,-8500.0,0.000245,11]
[334959078,1723673444663,-17433.76007285,0.000245,11]
[334959079,1723673444675,-216000.0,0.000245,11]
[334959080,1723673444686,-2670.8,0.000245,11]
[334959081,1723673444697,-10816.61358908,0.000245,11]
[334959086,1723673445862,-367.30388687,0.00024201,2]
[334959087,1723673445871,-215632.69611313,0.000245,11]
[334959088,1723673445882,-5892.4196,0.000245,11]
[334959089,1723673445893,-375.6372615,0.000245,11]
[334959090,1723673445908,-933.17494973,0.000245,11]
[334959091,1723673445919,-885.796,0.000245,11]
[334959092,1723673445979,-917.040015,0.000245,11]
[334959093,1723673445990,-291.49206008,0.000245,11]
[334959097,1723673497857,304.0,0.00025976,120]
[334959118,1723673781879,2000.0,0.00020651,120]
[334959142,1723674360600,300.7901458,0.00025,60]
[334959143,1723674420834,160.0,0.0002669,120]
[334959151,1723674441312,205.0,9.8e-05,2]
[334959152,1723674501086,-159.40645128,0.000109,2]
[334959153,1723674501115,-104.066804,0.000109,2]
[334959177,1723674575681,-223.27817801,0.000109,2]
[334959178,1723674575710,-84.49909006,0.000109,2]
[334959187,1723674631827,-15483.10746637,0.00010888,2]
[334959188,1723674631840,-86.03265489,0.000109,2]
[334959189,1723674631851,-162.75454349,0.000109,2]
[334959190,1723674631864,-181.86810677,0.000109,2]
[334959191,1723674631875,-162.75454349,0.000109,2]
[334959192,1723674631887,-327.34498201,0.000109,2]
[334959193,1723674631899,-151.07,0.0001099,2]
[334959194,1723674631911,-150.0,0.00010999,2]
[334959195,1723674631923,-5403.79429818,0.00010999,2]
[334959196,1723674631936,-59569.66861626,0.00011,2]
[334959197,1723674631950,-6599.90554356,0.00011,2]
[334959198,1723674632049,-968.08911481,0.00011,2]
[334959199,1723674632064,-1868.85369803,0.00011,2]
[334959200,1723674632079,-3347.64236569,0.00011,2]
[334959201,1723674632093,-49542.68876929,0.00011,2]
[334959202,1723674632109,-6577.56553854,0.00011,2]
[334959207,1723674637916,-300.0,0.00011,2]
[334959208,1723674637930,-313.999999,0.00011,2]
[334959210,1723674637946,-294.285,0.00011,2]
[334959213,1723674638220,-7472.5658855,0.00011,2]
[334959214,1723674638233,-1830.49503964,0.00011,2]
[334959216,1723674638247,-5255.92241343,0.00011,2]
[334959241,1723674639956,-583340.80187517,0.00011,2]
[334959242,1723674640058,-2871.20000003,0.00011,2]
[334959243,1723674640071,-588.6696629,0.00011,2]
[334959368,1723674642854,-159.40645126,0.000109,2]
[334959370,1723674642867,-4795.75835827,0.00010999,2]
[334959371,1723674642879,-3877.02270279,0.00011,2]
[334959378,1723674643195,-2890.86680234,0.00011,2]
[334959379,1723674643211,-2060.65439326,0.00011,2]
[334959380,1723674643227,-374.72962927,0.00011,2]
[334959381,1723674643248,-1318.27107175,0.00011,2]
[334959382,1723674643264,-1245.28478886,0.00011,2]
[334959384,1723674643282,-7472.31377471,0.00011,2]
[334959388,1723674643462,-753.87878709,0.00011,2]
[334959389,1723674643475,-4616.80177371,0.00011,2]
[334959394,1723674645952,-3737.94016708,0.00011,2]
[334959395,1723674646067,-810.7547,0.00011,2]
[334959396,1723674646080,-6316.88516173,0.00011,2]
[334959397,1723674646094,-553.6124409,0.00011,2]
[334959398,1723674646107,-2784.40376051,0.00011,2]
[334959588,1723675402848,157.17,9.696e-05,2]
[334959646,1723675758590,-201.0,9.999e-05,2]
[334959647,1723675758621,-300.0,9.999e-05,2]
[334959648,1723675758651,-550.0,0.0001,2]
[334959649,1723675758680,-1411.14939397,0.0001,2]
[334959650,1723675758718,-1991.87258777,0.0001,2]
[334959679,1723675831983,-727.5020417,0.0001,2]
[334959680,1723675832026,-1869.47597656,0.0001,2]
[334959681,1723675832038,-2111.39291129,0.0001,2]
[334959682,1723675832049,-1500.0,0.00010026,2]
[334959683,1723675832059,-53.25931207,0.00010026,2]
[334959684,1723675832071,-882.78747678,0.00010026,2]
[334959685,1723675832081,-250.0,0.00010408,2]
[334959686,1723675832092,-500.0,0.00010477,3]
[334959687,1723675832107,-400.0,0.00010522,2]
[334959688,1723675832117,-158.24348016,0.00010566,2]
[334959689,1723675832127,-155.0,0.00010566,2]
[334959690,1723675832137,-257.88535117,0.00010699,2]
[334959691,1723675832148,-432.47832469,0.00010699,2]
[334959692,1723675832158,-338.12109929,0.00010699,2]
[334959693,1723675832168,-306.30964202,0.00010713,2]
[334959694,1723675832178,-365.80180037,0.00010713,2]
[334959695,1723675832189,-155.0,0.00010713,2]
[334959696,1723675832199,-155.0,0.00010799,2]
[334959697,1723675832209,-155.0,0.00010799,2]
[334959698,1723675832219,-155.0,0.00010799,2]
[334959699,1723675832230,-310.0,0.00010861,2]
[334959700,1723675832239,-499.99,0.00010862,2]
[334959701,1723675832249,-163.61598892,0.00010888,2]
[334959702,1723675832259,-155.0,0.00010899,2]
[334959703,1723675832270,-506.05896762,0.00010899,2]
[334959704,1723675832283,-10028.09410793,0.00010899,2]
[334959705,1723675832293,-155.0,0.00010949,2]
[334959706,1723675832304,-155.0,0.00010949,2]
[334959707,1723675832314,-159.40645126,0.00010969,2]
[334959709,1723675832324,-1014.48,0.00010979,2]
[334959711,1723675832334,-1256.92584908,0.00010979,2]
[334959713,1723675832343,-155.0,0.00010979,2]
[334959715,1723675832353,-150.0,0.00010989,2]
[334959716,1723675832363,-653.64489815,0.00010989,2]
[334959717,1723675832373,-1049.84272767,0.0001099,2]
[334959718,1723675832383,-931.67,0.0001099,2]
[334959719,1723675832393,-11342.43596591,0.00011,2]
[334959720,1723675832409,-10618.65198285,0.00011,2]
[334959721,1723675832421,-3520.05519747,0.00011,2]
[334959726,1723675838139,-182.74808241,0.00010989,2]
[334959727,1723675838150,-297.13118973,0.00011,2]
[334959765,1723675840357,-590.406525,0.00011,2]
[334959946,1723675843115,-1279.97005618,0.00011,2]
[334959949,1723675843508,-1647.90000071,0.00011,2]
[334959959,1723675846225,-13845.770288,0.00011,2]
[334959960,1723675846391,-9831.81837573,0.00011,2]
[334960201,1723677029648,157.34,8.219e-05,2]
[334960211,1723677032206,-200.0,9.99e-05,2]
[334960212,1723677032216,-550.0,0.0001,2]
[334960213,1723677032226,-300.0,0.00010025,2]
[334960214,1723677032236,-10534.15307555,0.00010505,2]
[334960216,1723677032246,-157.34,0.00010606,2]
[334960218,1723677032256,-965.87,0.00010612,2]
[334960219,1723677032265,-168.08,0.00010643,2]
[334960221,1723677032275,-2502.58566001,0.00010799,2]
[334960222,1723677032285,-839.2412,0.000108,2]
[334960224,1723677032295,-160.0,0.00010802,2]
[334960225,1723677032304,-3636.67016567,0.00010852,2]
[334960226,1723677032314,-3875.44196721,0.00010852,2]
[334960227,1723677032323,-2221.00758769,0.00010861,2]
[334960228,1723677032333,-1739.57017204,0.00010861,2]
[334960229,1723677032343,-155.0,0.00010862,2]
[334960230,1723677032354,-499.99,0.00010888,2]
[334960231,1723677032364,-1081.78,0.00010888,2]
[334960232,1723677032375,-22904.26,0.00010888,2]
[334960233,1723677032387,-2111.39291129,0.00010888,2]
[334960234,1723677032397,-628.75889526,0.00010888,2]
[334960235,1723677032408,-3937.46359227,0.00010888,2]
[334960236,1723677032418,-1298.23330788,0.0001089,2]
[334960237,1723677032429,-1139.1217656,0.00010899,2]
[334960238,1723677032439,-3680.0082,0.000109,2]
[334960239,1723677032450,-290.4654,0.000109,2]
[334960240,1723677032460,-4491.1038,0.000109,2]
[334960241,1723677032469,-965.9951,0.000109,2]
[334960242,1723677032480,-11130.3814,0.000109,2]
[334960243,1723677032490,-2104.6987,0.000109,2]
[334960246,1723677032505,-3787.77579511,0.000109,2]
[334960249,1723677032515,-1000.0,0.000109,2]
[334960252,1723677032525,-2500.0,0.000109,2]
[334960255,1723677032535,-203.78424339,0.00010949,2]
[334960258,1723677032546,-178.14591444,0.00010949,2]
[334960259,1723677032561,-250.0,0.00010959,2]
[334960260,1723677032571,-2000.0,0.00010959,2]
[334960261,1723677032581,-150.0,0.00010959,2]
[334960262,1723677032592,-240.13389093,0.00010979,2]
[334960263,1723677032602,-155.0,0.00010993,2]
[334960264,1723677032612,-802.37415229,0.00010999,2]
[334960265,1723677032623,-92451.27424759,0.00011,2]
[334960266,1723677032633,-116020.03442762,0.00011,2]
[334960267,1723677032645,-181.86810677,0.00011,2]
[334960268,1723677032654,-170.53174495,0.00011,2]
[334960269,1723677032666,-162.75454349,0.00011,2]
[334960270,1723677032675,-500.0,0.00011,2]
[334960271,1723677032685,-3000.0,0.00011,2]
[334960272,1723677032695,-150.0,0.00011,2]
[334960273,1723677032705,-420.0,0.00011028,2]
[334960274,1723677032715,-243.2,0.00011069,2]
[334960275,1723677032725,-911.28,0.00011069,2]
[334960276,1723677032735,-250.0,0.0001121,2]
[334960277,1723677032747,-303.90469939,0.00011336,2]
[334960278,1723677032757,-521.06,0.00011341,2]
[334960279,1723677032768,-320.0,0.0001144,2]
[334960280,1723677032778,-224.497697,0.00011753,2]
[334960281,1723677032789,-6135.28385605,0.00012,2]
[334960282,1723677032800,-743.79,0.00012,2]
[334960283,1723677032811,-5000.0,0.00012,2]
[334960284,1723677032822,-600.0,0.00012,2]
[334960285,1723677032833,-7000.0,0.00012089,3]
[334960286,1723677032845,-2841.12816254,0.00012126,2]
[334960287,1723677032855,-587.0,0.0001213,2]
[334960288,1723677032866,-3787.77579506,0.00012411,2]
[334960289,1723677032877,-243.2,0.00012453,2]
[334960290,1723677032887,-1384.41985748,0.00012595,2]
[334960291,1723677032899,-320.0,0.0001287,2]
[334960292,1723677032909,-155.0,0.00012938,2]
[334960293,1723677032923,-157.34,0.00012993,2]
[334960294,1723677032935,-261.25595185,0.00013001,2]
[334960295,1723677032946,-264.49036255,0.00013042,2]
[334960296,1723677032958,-526.71491504,0.00013052,2]
[334960297,1723677032971,-152.0,0.00013054,2]
[334960298,1723677032983,-600.70924328,0.00013086,2]
[334960299,1723677033000,-271.45480386,0.00013291,2]
[334960300,1723677033010,-182.74808241,0.00013333,2]
[334960301,1723677033020,-823.0,0.00013343,2]
[334960302,1723677033030,-500.0,0.00013698,2]
[334960303,1723677033039,-500.0,0.00013698,2]
[334960304,1723677033049,-500.0,0.00013698,2]
[334960305,1723677033059,-500.0,0.00013698,2]
[334960306,1723677033069,-500.0,0.00013698,2]
[334960307,1723677033079,-500.0,0.00013698,2]
[334960308,1723677033089,-500.0,0.00013698,2]
[334960309,1723677033100,-500.0,0.00013698,2]
[334960310,1723677033109,-500.0,0.00013698,2]
[334960311,1723677033119,-500.0,0.00013698,2]
[334960312,1723677033129,-500.0,0.00013698,2]
[334960313,1723677033139,-500.0,0.00013698,2]
[334960314,1723677033149,-500.0,0.00013698,2]
[334960315,1723677033159,-171.18,0.00013699,2]
[334960316,1723677033169,-327.34498201,0.00013736,2]
[334960317,1723677033178,-52489.6502817,0.000138,3]
[334960318,1723677033189,-243.2,0.00013836,2]
[334960319,1723677033199,-3787.77579506,0.00013922,2]
[334960320,1723677033209,-3749.26073441,0.00013962,3]
[334960321,1723677033218,-500.0,0.00013972,2]
[334960322,1723677033228,-500.0,0.00013972,2]
[334960323,1723677033238,-500.0,0.00013972,2]
[334960324,1723677033250,-500.0,0.00013972,2]
[334960325,1723677033259,-500.0,0.00013972,2]
[334960326,1723677033273,-500.0,0.00013972,2]
[334960327,1723677033283,-500.0,0.00013972,2]
[334960328,1723677033293,-500.0,0.00013972,2]
[334960329,1723677033303,-500.0,0.00013972,2]
[334960330,1723677033312,-500.0,0.00013972,2]
[334960331,1723677033322,-500.0,0.00013972,2]
[334960332,1723677033332,-347.77948537,0.00013972,2]
[334960333,1723677033342,-472.39,0.00013973,2]
[334960334,1723677033352,-152.16,0.00013973,2]
[334960335,1723677033362,-3749.26073441,0.0001399,3]
[334960336,1723677033372,-650.0,0.00014,2]
[334960337,1723677033382,-775.29,0.00014226,2]
[334960338,1723677033392,-7498.52146882,0.00014236,3]
[334960339,1723677033402,-500.0,0.00014246,2]
[334960340,1723677033412,-500.0,0.00014246,2]
[334960341,1723677033422,-500.0,0.00014246,2]
[334960342,1723677033433,-500.0,0.00014246,2]
[334960343,1723677033443,-500.0,0.00014246,2]
[334960344,1723677033454,-500.0,0.00014246,2]
[334960345,1723677033464,-500.0,0.00014246,2]
[334960346,1723677033474,-500.0,0.00014246,2]
[334960347,1723677033484,-500.0,0.00014246,2]
[334960348,1723677033494,-500.0,0.00014246,2]
[334960349,1723677033504,-566.5,0.00014246,2]
[334960350,1723677033514,-2042.570093,0.00014247,2]
[334960351,1723677033524,-320.0,0.000143,2]
[334960352,1723677033534,-160.0,0.00014301,2]
[334960353,1723677033545,-3749.26073441,0.00014376,3]
[334960354,1723677033554,-170.36,0.00014394,2]
[334960355,1723677033564,-680.0,0.00014452,2]
[334960356,1723677033574,-3749.26073441,0.0001451,3]
[334960357,1723677033584,-407.07,0.0001452,2]
[334960358,1723677033594,-500.0,0.0001452,2]
[334960359,1723677033604,-500.0,0.0001452,2]
[334960360,1723677033614,-500.0,0.0001452,2]
[334960361,1723677033624,-429.62,0.0001452,2]
[334960362,1723677033634,-500.0,0.0001452,2]
[334960363,1723677033644,-500.0,0.0001452,2]
[334960364,1723677033655,-500.0,0.0001452,2]
[334960365,1723677033665,-500.0,0.0001452,2]
[334960366,1723677033674,-500.0,0.0001452,2]
[334960367,1723677033684,-330.0,0.00014677,2]
[334960368,1723677033694,-3749.26073441,0.00014784,3]
[334960369,1723677033703,-364.81,0.00014794,2]
[334960370,1723677033718,-360.77,0.00014794,2]
[334960371,1723677033728,-500.0,0.00014794,2]
[334960372,1723677033738,-500.0,0.00014794,2]
[334960373,1723677033750,-531.2,0.00014794,2]
[334960374,1723677033760,-500.0,0.00014794,2]
[334960375,1723677033770,-500.0,0.00014794,2]
[334960376,1723677033780,-638.44,0.00014794,2]
[334960377,1723677033790,-3749.26073441,0.00014837,3]
[334960378,1723677033799,-713.88,0.00014846,2]
[334960379,1723677033809,-3749.26073441,0.00015058,3]
[334960380,1723677033819,-500.0,0.00015068,2]
[334960381,1723677033829,-500.0,0.00015068,2]
[334960382,1723677033839,-500.0,0.00015068,2]
[334960383,1723677033849,-609.64,0.00015068,2]
[334960384,1723677033859,-2042.570093,0.00015068,2]
[334960385,1723677033869,-243.2,0.0001522,2]
[334960386,1723677033879,-151.03,0.00015322,2]
[334960387,1723677033889,-3749.26073441,0.00015332,3]
[334960388,1723677033899,-448.22107204,0.00015341,2]
[334960389,1723677033910,-500.0,0.00015342,2]
[334960390,1723677033923,-500.0,0.00015342,2]
[334960391,1723677033933,-500.0,0.00015342,2]
[334960392,1723677033943,-157.34,0.00015381,2]
[334960393,1723677033954,-3787.77579506,0.00015433,2]
[334960394,1723677033964,-500.0,0.00015616,2]
[334960395,1723677033974,-500.0,0.00015616,2]
[334960396,1723677033984,-500.0,0.00015616,2]
[334960397,1723677033995,-3749.26073441,0.00015723,3]
[334960398,1723677034006,-320.0,0.0001573,2]
[334960399,1723677034016,-764.0,0.00015733,2]
[334960400,1723677034026,-664.363,0.00015733,2]
[334960401,1723677034036,-3749.26073441,0.0001588,3]
[334960402,1723677034046,-570.47069641,0.0001589,2]
[334960403,1723677034057,-3749.26073441,0.0001589,3]
[334960404,1723677034066,-500.0,0.0001589,2]
[334960405,1723677034077,-500.0,0.0001589,2]
[334960406,1723677034087,-2042.570093,0.0001589,2]
[334960407,1723677034096,-4098.0,0.000159,2]
[334960408,1723677034107,-3749.26073441,0.0001599,3]
[334960409,1723677034117,-553.46152388,0.00016,50]
[334960410,1723677034126,-3000.0,0.00016,2]
[334960411,1723677034136,-1110.0,0.000161,2]
[334960412,1723677034146,-3749.26073441,0.00016154,3]
[334960413,1723677034156,-500.0,0.00016164,2]
[334960414,1723677034166,-500.0,0.00016164,2]
[334960415,1723677034176,-680.0,0.00016258,2]
[334960416,1723677034186,-500.0,0.00016438,2]
[334960417,1723677034475,-500.0,0.00016438,2]
[334960418,1723677034487,-243.2,0.00016604,2]
[334960419,1723677034499,-3749.26073441,0.00016702,3]
[334960420,1723677034510,-500.0,0.00016712,2]
[334960421,1723677034520,-500.0,0.00016712,2]
[334960422,1723677034531,-2042.570093,0.00016712,2]
[334960423,1723677034541,-639.095,0.00016939,2]
[334960424,1723677034551,-3787.77579506,0.00016944,2]
[334960425,1723677034562,-3749.26073441,0.00016976,3]
[334960426,1723677034572,-500.0,0.00016986,2]
[334960427,1723677034583,-524.66,0.00016986,2]
[334960428,1723677034593,-613.04,0.00016986,2]
[334960429,1723677034603,-500.0,0.00017157,2]
[334960430,1723677034618,-320.0,0.0001716,2]
[334960431,1723677034629,-500.0,0.00017166,2]
[334960432,1723677034640,-500.0,0.00017174,2]
[334960433,1723677034650,-500.0,0.00017183,2]
[334960434,1723677034662,-500.0,0.00017192,2]
[334960435,1723677034672,-500.0,0.00017201,2]
[334960436,1723677034683,-500.0,0.0001721,2]
[334960437,1723677034693,-500.0,0.00017218,2]
[334960438,1723677034704,-500.0,0.00017227,2]
[334960439,1723677034715,-3749.26073441,0.00017235,3]
[334960440,1723677034725,-500.0,0.00017236,2]
[334960441,1723677034735,-500.0,0.00017245,2]
[334960442,1723677034746,-500.0,0.00017254,2]
[334960443,1723677034756,-500.0,0.0001726,2]
[334960444,1723677034767,-500.0,0.00017262,2]
[334960445,1723677034777,-500.0,0.00017271,2]
[334960446,1723677034787,-500.0,0.0001728,2]
[334960447,1723677034798,-3749.26073441,0.00017288,3]
[334960448,1723677034808,-500.0,0.00017289,2]
[334960449,1723677034818,-500.0,0.00017298,2]
[334960450,1723677034829,-500.0,0.00017306,2]
[334960451,1723677034839,-500.0,0.00017315,2]
[334960452,1723677034850,-500.0,0.00017324,2]
[334960453,1723677034860,-500.0,0.00017333,2]
[334960454,1723677034870,-500.0,0.00017342,2]
[334960455,1723677034880,-500.0,0.0001735,2]
[334960456,1723677034891,-3749.26073441,0.00017358,3]
[334960457,1723677034901,-500.0,0.00017359,2]
[334960458,1723677034914,-500.0,0.00017368,2]
[334960459,1723677034925,-500.0,0.00017377,2]
[334960460,1723677034935,-500.0,0.00017386,2]
[334960461,1723677034946,-500.0,0.00017394,2]
[334960462,1723677034957,-500.0,0.00017403,2]
[334960463,1723677034968,-500.0,0.00017412,2]
[334960464,1723677034978,-3749.26073441,0.0001742,3]
[334960465,1723677034989,-500.0,0.00017421,2]
[334960466,1723677035001,-500.0,0.0001743,2]
[334960467,1723677035011,-500.0,0.00017438,2]
[334960468,1723677035021,-500.0,0.00017447,2]
[334960469,1723677035031,-500.0,0.00017456,2]
[334960470,1723677035042,-500.0,0.00017465,2]
[334960471,1723677035052,-500.0,0.00017474,2]
[334960472,1723677035063,-500.0,0.00017482,2]
[334960473,1723677035077,-3749.26073441,0.0001749,3]
[334960474,1723677035088,-500.0,0.00017491,2]
[334960475,1723677035098,-500.0,0.000175,2]
[334960476,1723677035108,-246.22,0.000175,7]
[334960477,1723677035118,-500.0,0.00017509,2]
[334960478,1723677035128,-500.0,0.00017518,2]
[334960479,1723677035138,-3749.26073441,0.00017524,3]
[334960480,1723677035149,-500.0,0.00017526,2]
[334960481,1723677035159,-500.0,0.00017534,2]
[334960482,1723677035168,-2042.570093,0.00017534,2]
[334960483,1723677035178,-500.0,0.00017535,2]
[334960484,1723677035188,-14997.0429376,0.00017543,3]
[334960485,1723677035198,-500.0,0.00017544,2]
[334960486,1723677035208,-500.0,0.00017553,2]
[334960487,1723677035218,-296.053112,0.00017553,2]
[334960488,1723677035228,-151.0,0.00017553,2]
[334960489,1723677035238,-151.0,0.00017553,2]
[334960490,1723677035249,-151.0,0.00017553,2]
[334960491,1723677035259,-151.0,0.00017553,2]
[334960492,1723677035269,-191.680496,0.00017553,2]
[334960493,1723677035279,-151.0,0.00017553,2]
[334960494,1723677035289,-191.680496,0.00017553,2]
[334960495,1723677035299,-151.0,0.00017553,2]
[334960496,1723677035309,-151.0,0.00017553,2]
[334960497,1723677035318,-168.6816,0.00017553,2]
[334960498,1723677035328,-151.0,0.00017553,2]
[334960499,1723677035337,-151.0,0.00017553,2]
[334960500,1723677035350,-151.0,0.00017553,2]
[334960501,1723677035360,-151.0,0.00017553,2]
[334960502,1723677035369,-151.0,0.00017553,2]
[334960503,1723677035379,-151.0,0.00017553,2]
[334960504,1723677035390,-151.0,0.00017553,2]
[334960505,1723677035400,-151.0,0.00017553,2]
[334960506,1723677035410,-4306.337115,0.00017553,2]
[334960507,1723677035421,-151.0,0.00017553,2]